fUSD/lending_fUSD_20250209
["ID","MTS","AMOUNT","RATE_DAILY","PERIOD"]
[352478273,1739133044641,-173.04322824,0.00018162,2]
[352478274,1739133044651,-150.0,0.00018162,2]
[352478275,1739133044661,-150.0,0.00018174,2]
[352478276,1739133044674,-173.04322824,0.00018182,2]
[352478277,1739133044684,-150.0,0.00018198,2]
[352478278,1739133044694,-173.04322824,0.00018202,2]
[352478279,1739133044704,-173.04322824,0.00018222,2]
[352478280,1739133044718,-150.0,0.00018234,2]
[352478281,1739133044727,-150.0,0.00018235,2]
[352478282,1739133044738,-173.04322824,0.00018242,2]
[352478283,1739133044748,-152.580515,0.00018248,3]
[352478284,1739133044761,-158.938037,0.00018248,3]
[352478285,1739133044771,-150.0,0.00018259,2]
[352478286,1739133044782,-173.04322824,0.00018262,2]
[352478287,1739133044791,-214.0,0.0001827,2]
[352478288,1739133044801,-216.0,0.0001827,2]
[352478289,1739133044810,-150.0,0.0001827,2]
[352478290,1739133044821,-173.04322824,0.00018282,2]
[352478291,1739133044831,-152.580515,0.00018286,2]
[352478292,1739133044841,-158.938037,0.00018286,2]
[352478293,1739133044850,-282.15083,0.00018288,7]
[352478294,1739133044860,-150.0,0.00018297,2]
[352478295,1739133044870,-173.04322824,0.00018302,2]
[352478296,1739133044883,-150.0,0.00018306,2]
[352478297,1739133044893,-173.04322824,0.00018322,2]
[352478298,1739133044903,-316.12667746,0.00018331,2]
[352478299,1739133044913,-300.0,0.00018334,2]
[352478300,1739133044922,-173.04322824,0.00018342,2]
[352478301,1739133044933,-150.0,0.00018342,2]
[352478302,1739133044943,-1000.0,0.00018356,4]
[352478303,1739133044953,-150.0,0.00018359,2]
[352478304,1739133044962,-173.04322824,0.00018362,2]
[352478305,1739133044972,-152.580515,0.00018376,7]
[352478306,1739133044983,-150.0,0.00018378,2]
[352478307,1739133044993,-173.04322824,0.00018382,2]
[352478308,1739133045003,-173.04322824,0.00018402,2]
[352478309,1739133045013,-150.0,0.00018411,2]
[352478310,1739133045023,-150.0,0.00018414,2]
[352478311,1739133045034,-150.0,0.00018421,2]
[352478312,1739133045044,-173.04322824,0.00018422,2]
[352478313,1739133045054,-173.04322824,0.00018442,2]
[352478314,1739133045064,-150.0,0.0001845,2]
[352478315,1739133045074,-173.04322824,0.00018462,2]
[352478316,1739133045084,-173.04322824,0.00018482,2]
[352478317,1739133045094,-150.0,0.00018483,2]
[352478318,1739133045105,-150.0,0.00018486,2]
[352478319,1739133045115,-282.15083,0.00018488,7]
[352478320,1739133045125,-363.33138531,0.00018493,2]
[352478321,1739133045135,-173.04322824,0.00018502,2]
[352478322,1739133045145,-173.04322824,0.00018522,2]
[352478323,1739133045155,-150.0,0.00018522,2]
[352478324,1739133045165,-173.04322824,0.00018542,2]
[352478325,1739133045174,-150.0,0.00018545,2]
[352478326,1739133045185,-150.0,0.00018558,2]
[352478327,1739133045195,-173.04322824,0.00018562,2]
[352478328,1739133045205,-150.0,0.00018564,2]
[352478329,1739133045217,-173.04322824,0.00018582,2]
[352478330,1739133045227,-384.5468195,0.00018592,2]
[352478331,1739133045238,-150.0,0.00018594,2]
[352478332,1739133045248,-154.53,0.000186,2]
[352478333,1739133045258,-154.53,0.000186,2]
[352478334,1739133045268,-173.04322824,0.00018602,2]
[352478336,1739133045278,-150.0,0.00018606,2]
[352478338,1739133045288,-173.04322824,0.00018622,2]
[352478340,1739133045298,-150.0,0.0001863,2]
[352478341,1739133045308,-1000.0,0.0001863,4]
[352478342,1739133045318,-173.04322824,0.00018642,2]
[352478343,1739133045328,-3911.0,0.00018644,2]
[352478344,1739133045338,-1007.0,0.00018644,2]
[352478345,1739133045348,-150.0,0.00018644,2]
[352478346,1739133045358,-1107.0,0.00018644,2]
[352478347,1739133045368,-1457.914,0.00018644,2]
[352478348,1739133045378,-173.04322824,0.00018662,2]
[352478349,1739133045387,-150.0,0.00018666,2]
[352478350,1739133045397,-150.0,0.00018668,2]
[352478351,1739133045406,-173.04322824,0.00018682,2]
[352478352,1739133045416,-384.5468195,0.00018682,2]
[352478353,1739133045425,-282.15083,0.00018688,7]
[352478354,1739133045435,-610.77,0.00018694,2]
[352478355,1739133045444,-173.04322824,0.00018702,2]
[352478356,1739133045454,-150.0,0.00018702,2]
[352478357,1739133045464,-150.0,0.00018716,2]
[352478358,1739133045474,-173.04322824,0.00018722,2]
[352478359,1739133045484,-150.0,0.0001873,2]
[352478360,1739133045493,-150.0,0.00018738,2]
[352478361,1739133045503,-173.04322824,0.00018742,2]
[352478362,1739133045513,-2000.0,0.00018751,2]
[352478363,1739133045522,-173.04322824,0.00018762,2]
[352478364,1739133045532,-150.0,0.00018774,2]
[352478365,1739133045542,-214.0,0.0001878,2]
[352478366,1739133045551,-216.0,0.0001878,2]
[352478367,1739133045561,-173.04322824,0.00018782,2]
[352478368,1739133045570,-150.0,0.00018792,2]
[352478369,1739133045580,-1012.15395257,0.00018794,2]
[352478370,1739133045591,-173.04322824,0.00018802,2]
[352478371,1739133045602,-150.0,0.0001881,2]
[352478372,1739133045612,-173.04322824,0.00018822,2]
[352478373,1739133045621,-173.04322824,0.00018842,2]
[352478374,1739133045631,-39518.34837743,0.00018843,2]
[352478375,1739133045641,-150.0,0.00018846,2]
[352478376,1739133045651,-150.0,0.00018854,2]
[352478377,1739133045660,-173.04322824,0.00018862,2]
[352478378,1739133045672,-150.0,0.00018868,2]
[352478379,1739133045681,-173.04322824,0.00018882,2]
[352478380,1739133045691,-150.0,0.00018882,2]
[352478381,1739133045701,-15565.39350727,0.00018888,2]
[352478382,1739133045711,-282.15083,0.00018888,7]
[352478383,1739133045721,-9800.86049633,0.000189,14]
[352478384,1739133045731,-25612.29768027,0.000189,2]
[352478385,1739133045741,-4843.4,0.000189,2]
[352478386,1739133045750,-71502.35858976,0.000189,7]
[352478387,1739133045759,-173.04322824,0.00018902,2]
[352478388,1739133045769,-1000.0,0.00018904,4]
[352478389,1739133045779,-150.0,0.00018915,2]
[352478390,1739133045788,-150.0,0.00018918,2]
[352478391,1739133045798,-173.04322824,0.00018922,2]
[352478392,1739133045808,-173.04322824,0.00018942,2]
[352478393,1739133045818,-150.0,0.00018954,2]
[352478394,1739133045828,-173.04322824,0.00018962,2]
[352478395,1739133045837,-1000.0,0.00018967,2]
[352478396,1739133045847,-152.580515,0.00018974,3]
[352478398,1739133045891,-158.938037,0.00018974,3]
[352478399,1739133045900,-150.0,0.00018977,2]
[352478400,1739133045909,-173.04322824,0.00018982,2]
[352478401,1739133045919,-150.0,0.0001899,2]
[352478402,1739133045929,-900.0,0.00019,20]
[352478403,1739133045939,-1000.0,0.00019,2]
[352478404,1739133045948,-1000.0,0.00019,3]
[352478405,1739133045958,-1000.0,0.00019,3]
[352478406,1739133045969,-1000.0,0.00019,3]
[352478407,1739133045978,-1000.0,0.00019,2]
[352478408,1739133045988,-1000.0,0.00019,2]
[352478409,1739133045997,-1000.0,0.00019,3]
[352478410,1739133046008,-1000.0,0.00019,2]
[352478411,1739133046018,-17561.10482372,0.00019,3]
[352478412,1739133046028,-7598.4583845,0.00019,2]
[352478413,1739133046037,-961.61,0.00019,2]
[352478414,1739133046047,-3713.78150957,0.00019,2]
[352478415,1739133046057,-400.0,0.00019,2]
[352478416,1739133046066,-8931.86510807,0.00019,2]
[352478417,1739133046086,-1408.86729729,0.00019,2]
[352478418,1739133046096,-15211.72287274,0.00019,2]
[352478419,1739133046106,-173.04322824,0.00019002,2]
[352478420,1739133046115,-1000.0,0.0001902,2]
[352478421,1739133046124,-150.0,0.0001902,2]
[352478422,1739133046133,-173.04322824,0.00019022,2]
[352478423,1739133046143,-150.0,0.00019026,2]
[352478424,1739133046152,-6194.95917003,0.00019036,2]
[352478425,1739133046163,-190.71315552,0.00019036,2]
[352478426,1739133046173,-150.0,0.00019039,2]
[352478427,1739133046183,-173.04322824,0.00019042,2]
[352478428,1739133046194,-150.0,0.00019062,2]
[352478429,1739133046203,-173.04322824,0.00019062,2]
[352478430,1739133046215,-1000.0,0.00019068,2]
[352478431,1739133046224,-173.04322824,0.00019081,2]
[352478432,1739133046234,-152.580515,0.00019082,7]
[352478433,1739133046243,-158.938037,0.00019082,7]
[352478434,1739133046253,-282.15083,0.00019088,7]
[352478435,1739133046263,-150.0,0.00019097,2]
[352478436,1739133046272,-150.0,0.00019101,2]
[352478437,1739133046283,-173.04322824,0.00019101,2]
[352478438,1739133046293,-384.5468195,0.00019103,2]
[352478439,1739133046303,-611.9268818,0.0001911,2]
[352478440,1739133046314,-4463.20159532,0.0001911,2]
[352478441,1739133046324,-173.04322824,0.00019121,2]
[352478442,1739133046334,-150.0,0.00019133,2]
[352478443,1739133046343,-173.04322824,0.00019141,2]
[352478444,1739133046352,-173.04322824,0.00019161,2]
[352478445,1739133046362,-150.0,0.00019163,2]
[352478446,1739133046372,-150.0,0.00019169,2]
[352478447,1739133046381,-150.0,0.00019172,2]
[352478448,1739133046391,-1000.0,0.00019178,4]
[352478449,1739133046401,-150.0,0.00019178,2]
[352478450,1739133046410,-150.0,0.00019178,2]
[352478451,1739133046419,-173.04322824,0.00019181,4]
[352478452,1739133046429,-173.04322824,0.00019201,4]
[352478453,1739133046439,-150.0,0.00019205,4]
[352478454,1739133046448,-650.72,0.00019213,2]
[352478455,1739133046457,-173.04322824,0.00019221,4]
[352478456,1739133046467,-150.0,0.00019224,4]
[352478457,1739133046477,-173.04322824,0.00019241,4]
[352478458,1739133046493,-150.0,0.00019241,4]
[352478459,1739133046506,-776.75,0.00019242,30]
[352478460,1739133046516,-173.04322824,0.00019261,4]
[352478461,1739133046525,-150.0,0.00019277,4]
[352478462,1739133046534,-173.04322824,0.00019281,4]
[352478463,1739133046544,-150.0,0.00019286,4]
[352478464,1739133046554,-282.15083,0.00019288,7]
[352478465,1739133046564,-214.0,0.0001929,2]
[352478466,1739133046574,-216.0,0.0001929,2]
[352478467,1739133046584,-29512.13458287,0.000193,2]
[352478468,1739133046716,-2704.94628179,0.000193,2]
[352478469,1739133046736,-88923.49252573,0.000193,2]
[352478470,1739133046759,-6511.79055971,0.000193,2]
[352478471,1739133046913,-482.987505,0.00012644,2]
[352478472,1739133046924,-424.012495,0.00012644,2]
[352478473,1739133046933,-349.47752,0.00012644,2]
[352478474,1739133047134,-411.3410183,0.00012644,2]
[352478475,1739133047149,-22.1814617,0.00012644,2]
[352478476,1739133047159,-2954.0,0.00012644,2]
[352478477,1739133047169,-1050.6185383,0.00012644,2]
[352478478,1739133047180,-213.3814617,0.00012644,2]
[352478479,1739133047191,-379.78825904,0.00015644,2]
[352478480,1739133047202,-316.73723578,0.00015644,2]
[352478481,1739133047214,-210.47450518,0.00015644,2]
[352478482,1739133047224,-783.0,0.00015644,2]
[352478483,1739133047233,-2954.0,0.00015644,2]
[352478484,1739133047242,-1264.0,0.00015644,2]
[352478485,1739133047252,-2653.97585,0.000161,2]
[352478486,1739133047261,-2653.97585,0.000181,2]
[352478487,1739133047271,-417.63414665,0.000193,2]
[352478488,1739133047429,-2890.0664,8.699e-05,2]
[352478489,1739133047439,-500.0,9.999e-05,2]
[352478490,1739133047450,-500.0,9.999e-05,2]
[352478491,1739133047459,-938.30415696,0.0001,2]
[352478492,1739133047479,-2652.78422499,0.0001,2]
[352478493,1739133047583,-500.0,9.999e-05,2]
[352478494,1739133047597,-303.61231431,0.0001,2]
[352478495,1739133047607,-220.53768569,0.0001,2]
[352478496,1739133047622,-255.94956802,0.0001,2]
[352478497,1739133068563,500.0,0.0002,120]
[352478498,1739133069030,284.07656381,0.0002,120]
[352478499,1739133213915,800.04,8.219e-05,2]
[352478501,1739134184870,825.11,8.219e-05,2]
[352478505,1739134231905,-984.236,8.699e-05,2]
[352478506,1739134231914,-384.70015679,8.699e-05,2]
[352478507,1739134231962,-500.0,8.699e-05,2]
[352478508,1739134232042,-813.43164321,8.699e-05,2]
[352478509,1739134232052,-151.56835679,8.822e-05,2]
[352478510,1739134232063,-1806.34229497,8.822e-05,2]
[352478511,1739134232073,-1023.08,8.822e-05,2]
[352478512,1739134232083,-543.71590714,8.835e-05,2]
[352478513,1739134232093,-150.0,8.835e-05,2]
[352478514,1739134232102,-300.0,8.835e-05,2]
[352478515,1739134232111,-22267.6763,8.836e-05,2]
[352478516,1739134232120,-1367.20852299,8.836e-05,2]
[352478517,1739134232132,-1544.55767701,8.836e-05,2]
[352478518,1739134232142,-16203.177,8.836e-05,2]
[352478519,1739134232152,-4943.2274,8.836e-05,2]
[352478520,1739134232162,-2000.0,8.848e-05,2]
[352478521,1739134232172,-500.0,8.851e-05,2]
[352478522,1739134232182,-688.5184,8.851e-05,2]
[352478523,1739134232191,-543.71590714,8.887e-05,2]
[352478524,1739134232200,-543.71590714,8.939e-05,2]
[352478525,1739134232209,-5861.32,8.939e-05,2]
[352478526,1739134232219,-393.48,8.944e-05,2]
[352478527,1739134232228,-3644.4435,8.973e-05,2]
[352478528,1739134232237,-5000.0,8.973e-05,2]
[352478529,1739134232247,-391.79,8.996e-05,2]
[352478530,1739134232256,-200.0,9.116e-05,2]
[352478531,1739134232265,-161.91,9.175e-05,2]
[352478532,1739134232275,-1000.0,9.269e-05,2]
[352478533,1739134232284,-184.51,9.434e-05,2]
[352478535,1739134232293,-302.47996871,9.569e-05,2]
[352478541,1739134232340,-197.52003129,9.569e-05,2]
[352478543,1739134232349,-767.03,9.576e-05,2]
[352478545,1739134232360,-704.77,9.715e-05,2]
[352478547,1739134232369,-255.0,9.718e-05,2]
[352478549,1739134232378,-215.22,9.788e-05,2]
[352478551,1739134232388,-500.0,9.9e-05,3]
[352478553,1739134232397,-500.0,9.995e-05,2]
[352478555,1739134232407,-500.0,9.995e-05,2]
[352478557,1739134232415,-500.0,9.995e-05,2]
[352478559,1739134232425,-500.0,9.995e-05,2]
[352478561,1739134232434,-500.0,9.995e-05,2]
[352478563,1739134232444,-500.0,9.995e-05,2]
[352478565,1739134232453,-500.0,9.995e-05,2]
[352478567,1739134232463,-500.0,9.995e-05,2]
[352478569,1739134232472,-395.42415129,9.995e-05,2]
[352478571,1739134232481,-500.0,9.995e-05,2]
[352478573,1739134232490,-500.0,9.995e-05,2]
[352478575,1739134232499,-500.0,9.995e-05,2]
[352478576,1739134232508,-500.0,9.995e-05,2]
[352478578,1739134232518,-500.0,9.995e-05,2]
[352478580,1739134232528,-500.0,9.997e-05,2]
[352478582,1739134232537,-500.0,9.997e-05,2]
[352478584,1739134232547,-500.0,9.997e-05,2]
[352478586,1739134232556,-500.0,9.997e-05,2]
[352478588,1739134232566,-500.0,9.997e-05,2]
[352478590,1739134232576,-500.0,9.997e-05,2]
[352478592,1739134232585,-500.0,9.997e-05,2]
[352478594,1739134232594,-500.0,9.997e-05,2]
[352478595,1739134232603,-500.0,9.997e-05,2]
[352478597,1739134232613,-500.0,9.997e-05,2]
[352478599,1739134232622,-500.0,9.997e-05,2]
[352478601,1739134232632,-500.0,9.997e-05,2]
[352478603,1739134232641,-500.0,9.997e-05,2]
[352478604,1739134232650,-500.0,9.997e-05,2]
[352478605,1739134232659,-500.0,9.997e-05,2]
[352478606,1739134232669,-500.0,9.997e-05,2]
[352478607,1739134232677,-500.0,9.997e-05,2]
[352478608,1739134232687,-500.0,9.997e-05,2]
[352478609,1739134232697,-500.0,9.997e-05,2]
[352478610,1739134232707,-500.0,9.997e-05,2]
[352478611,1739134232716,-500.0,9.997e-05,2]
[352478612,1739134232725,-500.0,9.997e-05,2]
[352478613,1739134232735,-500.0,9.997e-05,2]
[352478614,1739134232744,-500.0,9.997e-05,2]
[352478615,1739134232753,-500.0,9.997e-05,2]
[352478616,1739134232763,-500.0,9.997e-05,2]
[352478617,1739134232773,-500.0,9.997e-05,2]
[352478618,1739134232783,-500.0,9.997e-05,2]
[352478619,1739134232792,-500.0,9.997e-05,2]
[352478620,1739134232801,-500.0,9.997e-05,2]
[352478621,1739134232811,-500.0,9.997e-05,2]
[352478622,1739134232820,-500.0,9.997e-05,2]
[352478623,1739134232829,-500.0,9.997e-05,2]
[352478624,1739134232839,-500.0,9.997e-05,2]
[352478625,1739134232848,-500.0,9.997e-05,2]
[352478626,1739134232858,-500.0,9.997e-05,2]
[352478627,1739134232867,-500.0,9.997e-05,2]
[352478628,1739134232877,-500.0,9.997e-05,2]
[352478629,1739134232886,-500.0,9.997e-05,2]
[352478630,1739134232896,-313.461372,9.997e-05,2]
[352478631,1739134232905,-500.0,9.997e-05,2]
[352478632,1739134232914,-500.0,9.997e-05,2]
[352478633,1739134232924,-500.0,9.997e-05,2]
[352478634,1739134232933,-500.0,9.997e-05,2]
[352478635,1739134232944,-500.0,9.997e-05,2]
[352478636,1739134232960,-500.0,9.997e-05,2]
[352478637,1739134232969,-500.0,9.997e-05,2]
[352478638,1739134232980,-500.0,9.997e-05,2]
[352478639,1739134232989,-500.0,9.997e-05,2]
[352478640,1739134233001,-500.0,9.997e-05,2]
[352478641,1739134233011,-500.0,9.997e-05,2]
[352478642,1739134233021,-1319.722916,9.998e-05,2]
[352478643,1739134233033,-500.0,9.998e-05,2]
[352478644,1739134233042,-561.9562012,9.998e-05,2]
[352478645,1739134233052,-500.0,9.998e-05,2]
[352478646,1739134233062,-500.0,9.998e-05,2]
[352478647,1739134233072,-500.0,9.998e-05,2]
[352478648,1739134233082,-500.0,9.998e-05,2]
[352478649,1739134233091,-500.0,9.998e-05,2]
[352478650,1739134233101,-500.0,9.998e-05,2]
[352478651,1739134233111,-500.0,9.998e-05,2]
[352478652,1739134233120,-500.0,9.998e-05,2]
[352478653,1739134233131,-500.0,9.998e-05,2]
[352478654,1739134233140,-500.0,9.998e-05,2]
[352478655,1739134233149,-500.0,9.998e-05,2]
[352478656,1739134233158,-500.0,9.998e-05,2]
[352478657,1739134233168,-500.0,9.998e-05,2]
[352478658,1739134233177,-500.0,9.998e-05,2]
[352478659,1739134233187,-500.0,9.998e-05,2]
[352478660,1739134233199,-500.0,9.998e-05,2]
[352478661,1739134233208,-500.0,9.998e-05,2]
[352478662,1739134233217,-500.0,9.998e-05,2]
[352478663,1739134233227,-500.0,9.998e-05,2]
[352478664,1739134233236,-500.0,9.998e-05,2]
[352478665,1739134233246,-500.0,9.998e-05,2]
[352478666,1739134233255,-500.0,9.998e-05,2]
[352478667,1739134233265,-500.0,9.998e-05,2]
[352478668,1739134233274,-500.0,9.998e-05,2]
[352478669,1739134233283,-500.0,9.998e-05,2]
[352478670,1739134233293,-500.0,9.998e-05,2]
[352478671,1739134233302,-500.0,9.998e-05,2]
[352478672,1739134233312,-500.0,9.998e-05,2]
[352478673,1739134233321,-500.0,9.998e-05,2]
[352478674,1739134233330,-500.0,9.998e-05,2]
[352478675,1739134233339,-500.0,9.998e-05,2]
[352478676,1739134233349,-504.07952433,9.998e-05,2]
[352478677,1739134233358,-500.0,9.998e-05,2]
[352478678,1739134233367,-500.0,9.998e-05,2]
[352478679,1739134233377,-500.0,9.998e-05,2]
[352478680,1739134233386,-501.50765437,9.998e-05,2]
[352478681,1739134233396,-500.0,9.998e-05,2]
[352478682,1739134233405,-500.0,9.998e-05,2]
[352478683,1739134233415,-500.0,9.998e-05,2]
[352478684,1739134233425,-500.0,9.998e-05,2]
[352478685,1739134233435,-500.0,9.998e-05,2]
[352478686,1739134233448,-500.0,9.998e-05,2]
[352478687,1739134233458,-500.0,9.998e-05,2]
[352478688,1739134233468,-462.93075962,9.998e-05,2]
[352478689,1739134233483,-500.0,9.998e-05,2]
[352478690,1739134233495,-500.0,9.998e-05,2]
[352478691,1739134233506,-917.93,9.998e-05,2]
[352478692,1739134233518,-500.0,9.998e-05,2]
[352478693,1739134233529,-500.0,9.998e-05,2]
[352478694,1739134233539,-500.0,9.998e-05,2]
[352478695,1739134233549,-500.0,9.998e-05,2]
[352478696,1739134233559,-500.0,9.998e-05,2]
[352478697,1739134233569,-500.0,9.998e-05,2]
[352478698,1739134233580,-501.26233224,9.998e-05,2]
[352478699,1739134233590,-500.0,9.998e-05,2]
[352478700,1739134233599,-500.0,9.998e-05,2]
[352478701,1739134233609,-500.0,9.998e-05,2]
[352478702,1739134233619,-500.0,9.998e-05,2]
[352478703,1739134233629,-500.0,9.998e-05,2]
[352478704,1739134233639,-500.0,9.998e-05,2]
[352478705,1739134233649,-500.0,9.998e-05,2]
[352478706,1739134233658,-500.0,9.998e-05,2]
[352478707,1739134233667,-500.0,9.998e-05,2]
[352478708,1739134233677,-500.0,9.998e-05,2]
[352478709,1739134233687,-500.0,9.998e-05,2]
[352478710,1739134233698,-500.0,9.998e-05,2]
[352478711,1739134233707,-385.09852718,9.998e-05,2]
[352478712,1739134233717,-505.34133435,9.998e-05,2]
[352478713,1739134233726,-500.0,9.998e-05,2]
[352478714,1739134233736,-500.0,9.998e-05,2]
[352478715,1739134233746,-500.0,9.998e-05,2]
[352478716,1739134233755,-500.0,9.998e-05,2]
[352478717,1739134233765,-500.0,9.998e-05,2]
[352478718,1739134233774,-500.0,9.998e-05,2]
[352478719,1739134233784,-500.0,9.998e-05,2]
[352478720,1739134233793,-500.0,9.998e-05,2]
[352478721,1739134233803,-500.0,9.998e-05,2]
[352478722,1739134233813,-500.0,9.998e-05,2]
[352478723,1739134233823,-500.0,9.998e-05,2]
[352478724,1739134233832,-692.23,9.998e-05,2]
[352478725,1739134233842,-500.0,9.998e-05,2]
[352478726,1739134233851,-500.0,9.998e-05,2]
[352478727,1739134233861,-500.0,9.998e-05,2]
[352478728,1739134233871,-500.0,9.998e-05,2]
[352478729,1739134233880,-519.11341099,9.998e-05,2]
[352478730,1739134233890,-500.0,9.998e-05,2]
[352478731,1739134233899,-500.0,9.998e-05,2]
[352478732,1739134233908,-500.0,9.998e-05,2]
[352478733,1739134233918,-500.0,9.998e-05,2]
[352478734,1739134233927,-500.0,9.998e-05,2]
[352478735,1739134233936,-500.0,9.998e-05,2]
[352478736,1739134233947,-500.0,9.998e-05,2]
[352478737,1739134233959,-500.0,9.998e-05,2]
[352478738,1739134233969,-500.0,9.998e-05,2]
[352478739,1739134233978,-378.66583148,9.998e-05,2]
[352478740,1739134233988,-500.0,9.998e-05,2]
[352478741,1739134233999,-500.0,9.998e-05,2]
[352478742,1739134234009,-500.0,9.998e-05,2]
[352478743,1739134234018,-500.0,9.998e-05,2]
[352478744,1739134234028,-500.0,9.998e-05,2]
[352478745,1739134234039,-500.0,9.998e-05,2]
[352478746,1739134234049,-500.0,9.998e-05,2]
[352478747,1739134234059,-500.0,9.998e-05,2]
[352478748,1739134234069,-500.0,9.998e-05,2]
[352478749,1739134234080,-500.0,9.998e-05,2]
[352478750,1739134234089,-500.0,9.998e-05,2]
[352478751,1739134234099,-500.0,9.998e-05,2]
[352478752,1739134234109,-500.0,9.998e-05,2]
[352478753,1739134234120,-500.0,9.998e-05,2]
[352478754,1739134234130,-500.0,9.998e-05,2]
[352478755,1739134234140,-500.0,9.998e-05,2]
[352478756,1739134234160,-563.44566323,9.998e-05,2]
[352478757,1739134234170,-500.0,9.998e-05,2]
[352478758,1739134234184,-500.0,9.998e-05,2]
[352478759,1739134234195,-500.0,9.998e-05,2]
[352478760,1739134234205,-500.0,9.998e-05,2]
[352478761,1739134234214,-291.00012165,9.998e-05,2]
[352478762,1739134234224,-500.0,9.998e-05,2]
[352478763,1739134234233,-500.0,9.998e-05,2]
[352478764,1739134234242,-500.0,9.998e-05,2]
[352478765,1739134234252,-500.0,9.998e-05,2]
[352478766,1739134234261,-500.0,9.998e-05,2]
[352478767,1739134234271,-500.0,9.998e-05,2]
[352478768,1739134234280,-500.0,9.998e-05,2]
[352478769,1739134234290,-500.0,9.998e-05,2]
[352478770,1739134234300,-500.0,9.998e-05,2]
[352478771,1739134234310,-500.0,9.998e-05,2]
[352478772,1739134234320,-500.0,9.998e-05,2]
[352478773,1739134234329,-314.7135512,9.998e-05,2]
[352478774,1739134234339,-500.0,9.998e-05,2]
[352478775,1739134234350,-500.0,9.998e-05,2]
[352478776,1739134234361,-155.759278,9.998e-05,2]
[352478777,1739134234371,-500.0,9.998e-05,2]
[352478778,1739134234382,-500.0,9.998e-05,2]
[352478779,1739134234392,-500.0,9.998e-05,2]
[352478780,1739134234403,-500.0,9.998e-05,2]
[352478781,1739134234413,-500.0,9.998e-05,2]
[352478782,1739134234423,-500.0,9.998e-05,2]
[352478783,1739134234617,-500.0,9.998e-05,2]
[352478784,1739134234627,-500.0,9.998e-05,2]
[352478785,1739134234636,-500.0,9.998e-05,2]
[352478786,1739134234646,-500.0,9.998e-05,2]
[352478787,1739134234655,-500.0,9.998e-05,2]
[352478788,1739134234664,-500.0,9.998e-05,2]
[352478789,1739134234674,-500.0,9.998e-05,2]
[352478790,1739134234684,-162.11782136,9.998e-05,2]
[352478791,1739134234723,-500.0,9.995e-05,2]
[352478792,1739134234734,-500.0,9.995e-05,2]
[352478793,1739134234743,-80.99860329,9.998e-05,2]
[352478802,1739134237597,-500.0,9.995e-05,2]
[352478803,1739134237608,-500.0,9.995e-05,2]
[352478804,1739134237617,-500.0,9.995e-05,2]
[352478805,1739134237627,-500.0,9.995e-05,2]
[352478806,1739134237636,-500.0,9.995e-05,2]
[352478807,1739134237645,-500.0,9.995e-05,2]
[352478808,1739134237654,-500.0,9.995e-05,2]
[352478809,1739134237663,-500.0,9.995e-05,2]
[352478810,1739134237672,-500.0,9.995e-05,2]
[352478811,1739134237681,-500.0,9.995e-05,2]
[352478812,1739134237691,-500.0,9.995e-05,2]
[352478813,1739134237700,-500.0,9.995e-05,2]
[352478814,1739134237711,-500.0,9.995e-05,2]
[352478815,1739134237720,-500.0,9.995e-05,2]
[352478816,1739134237729,-500.0,9.995e-05,2]
[352478817,1739134237738,-500.0,9.995e-05,2]
[352478818,1739134237747,-500.0,9.995e-05,2]
[352478819,1739134237756,-500.0,9.995e-05,2]
[352478820,1739134237765,-500.0,9.995e-05,2]
[352478821,1739134237775,-500.0,9.995e-05,2]
[352478822,1739134237785,-500.0,9.995e-05,2]
[352478823,1739134237796,-500.0,9.995e-05,2]
[352478824,1739134237806,-500.0,9.995e-05,2]